bitfinex-derivatives/quotes_BTCF0:USTF0_20250901
["timestamp","ask_amount","ask_price","bid_price","bid_amount"]
[1756747208047,1.42654042,108760.0,108750.0,0.09645]
[1756747208247,1.82695821,108760.0,108750.0,0.40349112]
[1756747209640,1.82695821,108760.0,108750.0,0.40449112]
[1756747210042,1.82695821,108760.0,108750.0,0.40549112]
[1756747211444,0.51960821,108760.0,108750.0,0.76629112]
[1756747211645,1.46575821,108760.0,108750.0,0.76629112]
[1756747211845,0.54223821,108760.0,108750.0,0.76629112]
[1756747212146,1.46555821,108760.0,108750.0,0.76629112]
[1756747212540,1.44292821,108760.0,108750.0,0.76629112]
[1756747212740,1.46555821,108760.0,108750.0,0.76629112]
[1756747212937,0.51960821,108760.0,108750.0,1.07333224]
[1756747213140,1.44284821,108760.0,108750.0,0.76629112]
[1756747213547,1.46547821,108760.0,108750.0,0.76629112]
[1756747213750,1.44506042,108760.0,108750.0,0.76629112]
[1756747213947,1.44506042,108760.0,108750.0,0.77528407]
[1756747214151,1.44506042,108760.0,108750.0,0.46824295]
[1756747214346,1.44506042,108760.0,108750.0,0.45925]
[1756747214542,1.44506042,108760.0,108750.0,0.76629112]
[1756747214744,0.52182042,108760.0,108750.0,1.07333224]
[1756747215441,0.99254,108770.0,108760.0,0.08151]
[1756747215640,1.32254,108770.0,108760.0,0.38855112]
[1756747216651,1.39787658,108770.0,108760.0,0.38855112]
[1756747217557,1.39787658,108770.0,108760.0,0.08151]
[1756747217852,1.39787658,108770.0,108760.0,0.38855112]
[1756747220760,1.39719658,108770.0,108760.0,0.38855112]
[1756747222253,1.39719658,108770.0,108760.0,0.08151]
[1756747222456,1.39719658,108770.0,108760.0,0.38855112]
[1756747222758,1.39719658,108770.0,108760.0,0.04674]
[1756747222956,1.39719658,108770.0,108760.0,0.35378112]
[1756747223162,1.39719658,108770.0,108760.0,0.38855112]
[1756747225756,1.39719658,108770.0,108760.0,0.38075112]
[1756747226766,1.39719658,108770.0,108760.0,0.03894]
[1756747226960,1.39719658,108770.0,108760.0,0.34598112]
[1756747227562,1.39719658,108770.0,108750.0,0.39557]
[1756747227759,0.38470112,108760.0,108750.0,0.3608]
[1756747228066,0.74550112,108760.0,108740.0,0.76876295]
[1756747228266,0.07766,108750.0,108740.0,0.81550295]
[1756747228775,0.99818,108750.0,108740.0,0.3608]
[1756747229066,0.99818,108750.0,108740.0,0.38475]
[1756747229266,0.99818,108750.0,108740.0,0.71458112]
[1756747229566,0.99818,108750.0,108740.0,0.75035112]
[1756747229958,0.99818,108750.0,108740.0,0.44431]
[1756747230159,0.99818,108750.0,108740.0,0.75135112]
[1756747231066,0.99818,108750.0,108740.0,0.40854]
[1756747231463,0.99818,108750.0,108740.0,0.40754]
[1756747231670,0.07766,108740.0,108730.0,0.81550295]
[1756747231862,0.07766,108740.0,108730.0,0.71458112]
[1756747232464,0.07766,108740.0,108730.0,0.74935112]
[1756747232970,0.07766,108740.0,108730.0,0.75035112]
[1756747233174,0.07766,108740.0,108730.0,0.75135112]
[1756747233473,0.08680725,108740.0,108730.0,0.35578112]
[1756747233667,0.08680725,108740.0,108730.0,0.08351]
[1756747234272,0.08680725,108740.0,108730.0,0.08251]
[1756747234667,0.33680725,108740.0,108730.0,0.04674]
[1756747234868,0.07664,108730.0,108720.0,0.81590295]
[1756747235067,0.99624,108730.0,108720.0,0.81590295]
[1756747235267,0.99624,108730.0,108720.0,0.50886183]
[1756747235472,0.99624,108730.0,108720.0,0.81590295]
[1756747236069,0.99624,108730.0,108720.0,0.81690295]
[1756747236465,0.99624,108730.0,108720.0,0.81790295]
[1756747238465,0.99624,108730.0,108720.0,0.45710295]
[1756747238673,0.99624,108730.0,108720.0,0.15006183]
[1756747238870,0.99624,108730.0,108720.0,0.08391]
[1756747239569,0.99624,108730.0,108720.0,0.0885]
[1756747239872,0.99624,108730.0,108720.0,0.05373]
[1756747241176,0.99624,108730.0,108720.0,0.05273]
[1756747241673,0.99524,108730.0,108720.0,0.05273]
[1756747241873,0.07664,108730.0,108720.0,0.39616112]
[1756747242075,0.99524,108730.0,108720.0,0.39616112]
[1756747242272,0.07664,108730.0,108720.0,0.39616112]
[1756747242472,0.99516,108730.0,108720.0,0.39616112]
[1756747243174,0.99512,108730.0,108720.0,0.39616112]
[1756747246676,0.99512,108730.0,108720.0,0.08912]
[1756747246877,0.99512,108730.0,108720.0,0.39616112]
[1756747248178,0.99424,108730.0,108720.0,0.39616112]
[1756747251286,0.07664,108730.0,108720.0,0.39616112]
[1756747251480,0.79524,108730.0,108720.0,0.39616112]
[1756747251679,0.79524,108730.0,108720.0,0.08912]
[1756747251879,0.79524,108730.0,108720.0,0.39616112]
[1756747256084,0.79524,108730.0,108720.0,0.35877112]
[1756747256284,0.79524,108730.0,108720.0,0.08912]
[1756747256484,0.79524,108730.0,108720.0,0.39616112]
[1756747257887,0.99276,108730.0,108720.0,0.39616112]
[1756747258985,0.99276,108730.0,108720.0,0.39716112]
[1756747259186,0.99276,108730.0,108720.0,0.39816112]
[1756747260789,0.07664,108730.0,108720.0,0.39816112]
[1756747263290,0.04621,108740.0,108730.0,0.08453]
[1756747263486,0.9152,108740.0,108730.0,0.75237112]
[1756747263687,0.03043,108750.0,108740.0,0.03739]
[1756747263888,0.07664,108750.0,108740.0,0.44533]
[1756747264198,0.07664,108750.0,108740.0,0.75237112]
[1756747264594,0.07664,108750.0,108740.0,0.75696112]
[1756747265292,0.07664,108750.0,108740.0,0.44992]
[1756747265493,0.07664,108750.0,108740.0,0.75696112]
[1756747265802,0.04821,108750.0,108740.0,0.75696112]
[1756747265992,0.04921,108750.0,108740.0,0.75696112]
[1756747266193,0.003,108750.0,108740.0,0.75696112]
[1756747266593,0.003,108750.0,108740.0,1.68210227]
[1756747266989,0.001,108750.0,108740.0,1.68310227]
[1756747267195,0.001,108750.0,108740.0,1.06902003]
[1756747267393,0.001,108750.0,108740.0,1.16606115]
[1756747268299,3.33360299,108770.0,108750.0,0.01429]
[1756747268503,3.7428507,108770.0,108760.0,0.39073112]
[1756747268704,3.7428507,108770.0,108760.0,0.08369]
[1756747269000,3.7428507,108770.0,108760.0,0.39073112]
[1756747269699,3.7448507,108770.0,108760.0,0.39073112]
[1756747269900,3.7458507,108770.0,108760.0,0.39073112]
[1756747270301,3.9958507,108770.0,108760.0,0.39073112]
[1756747270491,3.9955307,108770.0,108760.0,0.39073112]
[1756747271891,3.99552601,108770.0,108760.0,0.39073112]
[1756747272097,3.97516299,108770.0,108760.0,0.39073112]
[1756747273098,0.49764658,108770.0,108760.0,0.84346242]
[1756747273304,1.41020658,108770.0,108760.0,0.84346242]
[1756747273492,1.41020658,108770.0,108760.0,0.75153112]
[1756747273897,1.41020658,108770.0,108760.0,0.84346242]
[1756747275106,0.12621658,108770.0,108760.0,1.35346242]
[1756747275301,0.05088,108770.0,108760.0,1.37346242]
[1756747275801,0.08131,108770.0,108760.0,1.34346242]
[1756747276204,0.07931,108770.0,108760.0,1.33446242]
[1756747276405,0.04888,108770.0,108760.0,1.33546242]
[1756747276605,0.02398,108770.0,108760.0,1.35546242]
[1756747276907,0.05441,108770.0,108760.0,1.33546242]
[1756747277104,0.05441,108770.0,108760.0,1.09546242]
[1756747278494,0.05441,108770.0,108760.0,1.00353112]
[1756747278699,0.07931,108770.0,108760.0,0.44649]
[1756747278896,0.07931,108770.0,108760.0,0.75353112]
[1756747289005,1.05715112,108770.0,108760.0,0.08569]
[1756747289209,1.05715112,108770.0,108760.0,0.04825]
[1756747289608,1.05715112,108770.0,108760.0,0.05284]
[1756747290611,1.05715112,108770.0,108760.0,0.00659]
[1756747290810,1.32715112,108770.0,108760.0,0.00559]
[1756747291014,1.34749923,108770.0,108760.0,0.00559]
[1756747291416,1.34749923,108770.0,108760.0,0.00459]
[1756747291617,1.34849923,108770.0,108760.0,0.00459]
[1756747292017,2.26201923,108770.0,108760.0,0.05084]
[1756747292514,2.26301923,108770.0,108760.0,0.02738]
[1756747292711,2.26301923,108770.0,108760.0,0.00459]
[1756747292923,2.26001923,108770.0,108760.0,0.00459]
[1756747293116,2.26201923,108770.0,108760.0,0.00459]
[1756747293819,2.26001923,108770.0,108760.0,0.00459]
[1756747294118,2.26101923,108770.0,108760.0,0.00459]
[1756747298213,2.26017923,108770.0,108760.0,0.00459]
[1756747301617,2.26017923,108770.0,108740.0,0.03596]
[1756747301824,0.74059112,108750.0,108730.0,0.03596]
[1756747302122,0.98179,108740.0,108730.0,0.08384]
[1756747302416,0.98179,108740.0,108730.0,0.39088112]
[1756747302922,0.99081418,108740.0,108730.0,0.39088112]
[1756747304416,0.99081418,108740.0,108730.0,0.39288112]
[1756747304815,0.99081418,108740.0,108730.0,0.39488112]
[1756747305019,0.99081418,108740.0,108730.0,0.39288112]
[1756747305218,0.99081418,108740.0,108730.0,0.39088112]
[1756747305618,0.08177418,108740.0,108730.0,0.39088112]
[1756747305819,0.99021418,108740.0,108730.0,0.39088112]
[1756747307015,0.99005418,108740.0,108730.0,0.08384]
[1756747307220,0.08177418,108740.0,108730.0,0.39088112]
[1756747307419,0.99005418,108740.0,108730.0,0.39088112]
[1756747308117,0.99005418,108740.0,108730.0,0.08384]
[1756747308316,1.2970953,108740.0,108730.0,0.08384]
[1756747308522,1.6578953,108740.0,108730.0,0.04788]
[1756747308821,1.6578953,108740.0,108730.0,0.02317]
[1756747309517,0.7496153,108740.0,108730.0,0.04788]
[1756747309717,1.6574953,108740.0,108730.0,0.08384]
[1756747310117,1.6574953,108740.0,108730.0,0.04788]
[1756747311522,0.7496153,108740.0,108730.0,0.04788]
[1756747311827,1.35045418,108740.0,108730.0,0.04788]
[1756747312023,1.6574953,108740.0,108730.0,0.04788]
[1756747317731,1.6563353,108740.0,108730.0,0.04788]
[1756747318827,0.44257418,108740.0,108730.0,0.04788]
[1756747319022,0.07275,108740.0,108730.0,0.39088112]
[1756747319326,0.43355,108750.0,108740.0,0.08384]
[1756747319528,1.429316,108750.0,108740.0,0.39088112]
[1756747320520,0.12691,108750.0,108740.0,1.00168112]
[1756747320828,1.03335,108750.0,108740.0,1.00168112]
[1756747321028,0.15275,108750.0,108740.0,1.00168112]
[1756747321332,1.05895,108750.0,108740.0,1.00168112]
[1756747321532,0.15275,108750.0,108740.0,1.00168112]
[1756747321725,1.05895,108750.0,108740.0,1.00168112]
[1756747322129,1.05895,108750.0,108740.0,1.00268112]
[1756747322528,1.06797842,108750.0,108740.0,1.00368112]
[1756747325729,1.06797842,108750.0,108740.0,0.69664]
[1756747325928,1.06797842,108750.0,108740.0,0.29988]
[1756747326328,1.06797842,108750.0,108740.0,0.33463]
[1756747327233,1.06797842,108750.0,108740.0,0.64067112]
[1756747328233,1.06797842,108750.0,108740.0,0.63967112]
[1756747329134,1.05895,108750.0,108740.0,0.63967112]
[1756747329633,1.05895,108750.0,108740.0,0.64067112]
[1756747329829,1.05895,108750.0,108740.0,0.64167112]
[1756747332134,1.05895,108750.0,108740.0,0.64067112]
[1756747332334,1.05895,108750.0,108740.0,0.64167112]
[1756747332834,1.06823654,108750.0,108740.0,0.63967112]
[1756747334037,1.06823654,108750.0,108740.0,0.33263]
[1756747334230,1.06823654,108750.0,108740.0,0.63967112]
[1756747334431,1.06823654,108750.0,108740.0,0.33263]
[1756747334632,1.06823654,108750.0,108740.0,0.60492112]
[1756747334838,1.06823654,108750.0,108740.0,0.63967112]
[1756747335230,1.06823654,108750.0,108740.0,0.33263]
[1756747335535,1.06823654,108750.0,108740.0,0.63967112]
[1756747336336,1.06587654,108750.0,108740.0,0.63967112]
[1756747338032,1.06587654,108750.0,108740.0,0.33263]
[1756747338233,1.95787766,108750.0,108730.0,0.03475]
[1756747338538,0.74198112,108740.0,108730.0,0.08401]
[1756747338937,0.74198112,108740.0,108720.0,0.63889295]
[1756747338938,0.4091,108740.0,108720.0,0.67364295]
[1756747339132,0.97762,108730.0,108720.0,0.41586183]
[1756747339337,1.64546112,108730.0,108720.0,0.31496]
[1756747339638,1.33842,108730.0,108720.0,0.31496]
[1756747340236,1.33842,108730.0,108720.0,0.34971]
[1756747340438,1.33842,108730.0,108720.0,0.35071]
[1756747341036,1.33842,108730.0,108720.0,0.35171]
[1756747342236,1.33842,108730.0,108720.0,0.65875112]
[1756747343441,0.43494,108730.0,108720.0,0.65875112]
[1756747343641,1.3377,108730.0,108720.0,0.35171]
[1756747343935,1.3377,108730.0,108720.0,0.39305112]
[1756747344241,0.43494,108730.0,108720.0,0.39305112]
[1756747344538,1.28833,108730.0,108720.0,0.39305112]
[1756747344727,1.31178,108730.0,108720.0,0.39305112]
[1756747344931,1.33762,108730.0,108720.0,0.39305112]
[1756747345446,0.43494,108730.0,108720.0,0.39305112]
[1756747345836,0.95074,108730.0,108720.0,1.31089224]
[1756747346136,0.02485,108730.0,108720.0,1.31089224]
[1756747346340,0.9507,108740.0,108730.0,0.08401]
[1756747346540,0.38664,108750.0,108730.0,0.75185112]
[1756747346844,1.0965,108750.0,108740.0,0.39105112]
[1756747348840,1.0975,108750.0,108740.0,0.39105112]
[1756747349032,1.0975,108750.0,108740.0,0.04926]
[1756747349233,0.07414,108740.0,108730.0,0.75185112]
[1756747350642,0.07414,108740.0,108730.0,0.75285112]
[1756747351344,0.07414,108740.0,108730.0,0.75385112]
[1756747351537,0.07414,108740.0,108730.0,0.39305112]
[1756747351737,0.07414,108740.0,108730.0,0.75385112]
[1756747352646,0.43494,108740.0,108730.0,0.05126]
[1756747352846,0.43494,108740.0,108730.0,0.08601]
[1756747353646,0.43494,108740.0,108730.0,0.08501]
[1756747353647,1.33626,108740.0,108730.0,0.08501]
[1756747354050,1.33626,108740.0,108730.0,0.08401]
[1756747354345,1.31042,108740.0,108720.0,0.46170183]
[1756747354546,0.07414,108730.0,108720.0,0.45720295]
[1756747356548,0.07414,108730.0,108720.0,0.45920295]
[1756747357249,0.07414,108730.0,108720.0,0.45820295]
[1756747357449,0.07414,108730.0,108720.0,0.45920295]
[1756747359046,0.07414,108730.0,108720.0,0.39305112]
[1756747362848,0.07414,108730.0,108720.0,0.08601]
[1756747362849,0.74198112,108730.0,108720.0,0.08601]
[1756747363745,0.43494,108730.0,108720.0,0.08601]
[1756747364151,0.74198112,108730.0,108720.0,0.08601]
[1756747364662,0.43494,108730.0,108720.0,0.08601]
[1756747368858,0.43494,108730.0,108700.0,0.08224111]
[1756747368859,0.02415,108710.0,108700.0,0.08224111]
[1756747369062,0.07098,108700.0,108690.0,0.08351]
[1756747369268,0.73423112,108700.0,108690.0,0.08351]
[1756747369453,1.65373609,108700.0,108690.0,0.08351]
[1756747369851,0.75465609,108700.0,108690.0,0.08351]
[1756747370058,1.65065609,108700.0,108690.0,0.08351]
[1756747370260,1.72381575,108700.0,108690.0,0.08351]
[1756747370857,0.75165609,108700.0,108690.0,0.08351]
[1756747371056,1.65061609,108700.0,108690.0,0.08351]
[1756747372267,1.63019112,108700.0,108690.0,0.08351]
[1756747373167,1.63955306,108700.0,108690.0,0.08351]
[1756747373367,1.63955306,108700.0,108690.0,0.04817]
[1756747373860,1.63955306,108700.0,108690.0,0.08351]
[1756747375565,1.71295141,108700.0,108690.0,0.08351]
[1756747376068,1.71495141,108700.0,108690.0,0.08351]
[1756747376269,1.71595141,108700.0,108690.0,0.08351]
[1756747376568,1.40819029,108700.0,108690.0,0.08351]
[1756747376760,1.71523141,108700.0,108690.0,0.08351]
[1756747376957,1.71723141,108700.0,108690.0,0.08351]
[1756747377562,1.71523141,108700.0,108690.0,0.08351]
[1756747377763,1.71423141,108700.0,108690.0,0.08351]
[1756747380371,1.40699029,108700.0,108690.0,0.08351]
[1756747380566,1.71403141,108700.0,108690.0,0.08351]
[1756747382162,1.71403141,108700.0,108690.0,0.04817]
[1756747382564,1.71403141,108700.0,108690.0,0.08351]
[1756747383476,1.71403141,108700.0,108690.0,0.04817]
[1756747383668,0.01625,108680.0,108670.0,0.03534]
[1756747383874,1.62855112,108680.0,108670.0,0.08351]
[1756747384069,1.62855112,108680.0,108670.0,0.04817]
[1756747384274,1.62855112,108680.0,108670.0,0.02326]
[1756747384785,1.62855112,108680.0,108670.0,0.05017]
[1756747384979,1.62855112,108680.0,108670.0,0.002]
[1756747385682,1.62855112,108680.0,108670.0,0.003]
[1756747385882,1.98935112,108680.0,108670.0,0.003]
[1756747386679,1.98935112,108680.0,108670.0,0.002]
[1756747387377,0.06476,108670.0,108650.0,0.32186112]
[1756747387577,0.96176,108660.0,108650.0,0.08277]
[1756747388180,0.96176,108660.0,108650.0,0.09757]
[1756747388375,0.96176,108660.0,108650.0,0.08277]
[1756747388582,0.96176,108660.0,108650.0,0.08577]
[1756747388780,0.96176,108660.0,108650.0,0.08777]
[1756747390186,1.26880112,108660.0,108650.0,0.08777]
[1756747390389,1.2781773,108660.0,108650.0,0.08777]
[1756747390787,0.97113618,108660.0,108650.0,0.08777]
[1756747391087,0.97113618,108660.0,108650.0,0.05356]
[1756747391290,1.33193618,108660.0,108650.0,0.05356]
[1756747391586,1.6389773,108660.0,108650.0,0.05356]
[1756747391786,1.33193618,108660.0,108650.0,0.02974]
[1756747391986,1.6389773,108660.0,108650.0,0.02974]
[1756747392784,0.7419773,108660.0,108650.0,0.05356]
[1756747392991,1.33117618,108660.0,108650.0,0.08777]
[1756747393186,1.6382173,108660.0,108650.0,0.05356]
[1756747393386,1.6382173,108660.0,108650.0,0.08777]
[1756747393989,0.43493618,108660.0,108650.0,0.08777]
[1756747394286,1.33117618,108660.0,108650.0,0.08777]
[1756747395088,1.33117618,108660.0,108650.0,0.005]
[1756747395392,1.6382173,108660.0,108650.0,0.005]
[1756747395781,1.8882173,108660.0,108650.0,0.005]
[1756747396286,1.8878573,108660.0,108650.0,0.005]
[1756747396682,2.21526664,108660.0,108650.0,0.005]
[1756747396882,1.90822552,108660.0,108650.0,0.005]
[1756747398190,1.89197552,108660.0,108630.0,0.34125112]
[1756747398493,0.04725,108640.0,108630.0,0.16277]
[1756747398793,0.94281,108640.0,108630.0,0.16277]
[1756747399394,0.94281,108640.0,108630.0,0.41677]
[1756747399695,1.01467338,108640.0,108630.0,0.41677]
[1756747400084,1.01467338,108640.0,108630.0,0.42177]
[1756747400285,1.3217145,108640.0,108630.0,0.05756]
[1756747400490,1.6825145,108640.0,108630.0,0.03374]
[1756747400883,1.6825145,108640.0,108630.0,0.05756]
[1756747401084,1.6825145,108640.0,108630.0,0.009]
[1756747401795,0.7869545,108640.0,108630.0,0.005]
[1756747401990,1.37515338,108640.0,108630.0,0.005]
[1756747402188,1.6821945,108640.0,108630.0,0.005]
[1756747402791,1.6821945,108640.0,108620.0,0.03421]
[1756747402988,1.6821945,108640.0,108630.0,0.001]
[1756747403189,1.6831945,108640.0,108630.0,0.001]
[1756747403886,1.6831945,108640.0,108620.0,0.03421]
[1756747404083,0.04725,108630.0,108620.0,0.08477]
[1756747404494,0.71509112,108630.0,108610.0,0.39501]
[1756747404687,0.94209,108620.0,108610.0,0.76357]
[1756747404893,0.94109,108620.0,108610.0,0.76357]
[1756747405084,1.30189,108620.0,108610.0,0.08277]
[1756747405589,1.30189,108620.0,108610.0,0.08477]
[1756747405792,1.30181,108620.0,108610.0,0.05056]
[1756747405995,1.30181,108620.0,108610.0,0.08477]
[1756747406392,1.60885112,108620.0,108610.0,0.02674]
[1756747406593,1.60885112,108620.0,108610.0,0.05056]
[1756747406896,1.60785112,108620.0,108610.0,0.05056]
[1756747407089,1.30977434,108620.0,108610.0,0.08477]
[1756747407289,1.61681546,108620.0,108610.0,0.002]
[1756747407497,1.61681546,108620.0,108610.0,0.005]
[1756747408897,1.61669546,108620.0,108610.0,0.05356]
[1756747409196,1.61669546,108620.0,108610.0,0.005]
[1756747409883,1.86669546,108620.0,108600.0,0.0046]
[1756747410089,0.68569112,108610.0,108600.0,0.0046]
[1756747411003,0.68569112,108610.0,108600.0,0.0066]
[1756747411304,0.68569112,108610.0,108600.0,0.0076]
[1756747411694,0.68569112,108610.0,108600.0,0.0066]
[1756747411898,0.68569112,108610.0,108600.0,0.0056]
[1756747414104,0.68569112,108610.0,108600.0,0.08837]
[1756747414105,0.37865,108610.0,108600.0,0.08837]
[1756747414310,1.27277,108610.0,108600.0,0.09857]
[1756747415493,1.27277,108610.0,108600.0,0.08377]
[1756747415902,0.37865,108610.0,108600.0,0.09789]
[1756747416102,1.27257,108610.0,108600.0,0.09789]
[1756747416603,1.27257,108610.0,108600.0,0.98152112]
[1756747416604,0.89372,108610.0,108600.0,0.98152112]
[1756747416796,0.01321434,108620.0,108600.0,0.98152112]
[1756747417000,0.92053434,108620.0,108610.0,0.38933112]
[1756747417599,0.92053434,108620.0,108610.0,0.75013112]
[1756747417809,0.92045434,108620.0,108610.0,0.44309]
[1756747417996,0.92045434,108620.0,108610.0,0.08229]
[1756747418195,0.92245434,108620.0,108610.0,0.08229]
[1756747418800,0.92345434,108620.0,108610.0,0.08229]
[1756747419499,1.28425434,108620.0,108610.0,0.08229]
[1756747420203,0.92345434,108620.0,108610.0,0.08229]
[1756747422806,0.92345434,108620.0,108610.0,0.38933112]
[1756747423401,0.92301434,108620.0,108610.0,0.38933112]
[1756747424099,0.02085,108620.0,108610.0,1.00013112]
[1756747424301,0.0950498,108620.0,108610.0,1.09218942]
[1756747425708,0.0950498,108620.0,108610.0,1.0451483]
[1756747425908,0.0950498,108620.0,108610.0,1.11218942]
[1756747427601,0.0950498,108620.0,108610.0,1.09218942]
[1756747428306,0.0950498,108620.0,108610.0,1.10115749]
[1756747429612,0.0950498,108620.0,108610.0,1.00909919]
[1756747430608,0.1128998,108620.0,108610.0,0.69309]
[1756747430810,0.1128998,108620.0,108610.0,1.00013112]
[1756747431110,0.1128998,108620.0,108610.0,0.44309]
[1756747431504,0.41994092,108620.0,108610.0,0.08229]
[1756747432412,0.1128998,108620.0,108610.0,0.08229]
[1756747432608,0.1128998,108620.0,108610.0,0.38933112]
[1756747432910,1.0048198,108620.0,108610.0,0.75013112]
[1756747434507,1.0048198,108620.0,108610.0,0.44309]
[1756747434709,1.0048198,108620.0,108610.0,0.75013112]
[1756747434908,1.02523223,108620.0,108610.0,0.75013112]
[1756747435809,1.0048198,108620.0,108610.0,0.75013112]
[1756747436205,1.0048198,108620.0,108610.0,0.44309]
[1756747436412,2.24586447,108620.0,108600.0,0.00457]
[1756747436613,0.97488224,108610.0,108600.0,0.00457]
[1756747436806,1.24529467,108610.0,108600.0,0.00457]
[1756747437415,1.56529467,108610.0,108600.0,0.00457]
[1756747437612,1.56529467,108610.0,108570.0,0.44309]
[1756747437920,0.66784112,108590.0,108570.0,0.08229]
[1756747438104,0.8914,108580.0,108570.0,0.08229]
[1756747438308,0.8904,108580.0,108570.0,0.08229]
[1756747438709,1.55824112,108580.0,108560.0,0.44309]
[1756747438918,1.55824112,108580.0,108570.0,0.004]
[1756747439229,1.57863104,108580.0,108570.0,0.004]
[1756747439717,1.65132969,108580.0,108570.0,0.004]
[1756747439914,1.65216969,108580.0,108570.0,0.004]
[1756747440115,0.76092969,108580.0,108570.0,0.004]
[1756747440308,1.65208969,108580.0,108570.0,0.007]
[1756747440509,1.65208969,108580.0,108570.0,0.39633112]
[1756747440510,0.98424857,108580.0,108570.0,0.39633112]
[1756747440705,0.09308857,108580.0,108570.0,0.39633112]
[1756747440915,0.98420857,108580.0,108570.0,0.39633112]
[1756747441207,0.98420857,108580.0,108570.0,0.08929]
[1756747442014,0.09308857,108580.0,108570.0,0.08529]
[1756747442204,0.98416857,108580.0,108570.0,0.47031704]
[1756747442413,0.96377865,108580.0,108570.0,0.46731704]
[1756747442610,0.96373865,108580.0,108570.0,0.46731704]
[1756747442812,0.89104,108580.0,108570.0,0.08229]
[1756747443123,0.74582704,108590.0,108580.0,0.08229]
[1756747443124,0.3608,108590.0,108580.0,0.08229]
[1756747443331,1.27223945,108590.0,108580.0,0.08229]
[1756747444520,1.27323945,108590.0,108580.0,0.08229]
[1756747444721,0.38227945,108590.0,108580.0,0.08229]
[1756747445019,1.2536,108590.0,108580.0,0.08229]
[1756747445217,0.89284,108590.0,108580.0,0.69309]
[1756747445417,0.002,108590.0,108580.0,1.17020074]
[1756747445623,0.002,108590.0,108580.0,2.40096074]
[1756747445816,0.3608,108630.0,108580.0,2.41096074]
[1756747446010,1.64199234,108630.0,108610.0,0.44684]
[1756747446215,1.63070451,108630.0,108610.0,0.41015]
[1756747446415,1.63070451,108630.0,108620.0,0.03669]
[1756747446616,1.63070451,108630.0,108620.0,0.08604]
[1756747447021,1.63062451,108630.0,108620.0,0.08604]
[1756747447220,1.63162451,108630.0,108620.0,0.08604]
[1756747447726,1.63158451,108630.0,108620.0,0.08604]
[1756747448222,0.371,108630.0,108620.0,1.08186704]
[1756747448427,0.001,108630.0,108620.0,1.08186704]
[1756747448629,0.005,108630.0,108620.0,1.08186704]
[1756747448927,0.007,108630.0,108620.0,0.83186704]
[1756747449222,0.007,108630.0,108620.0,0.41015]
[1756747449223,1.28242704,108630.0,108620.0,0.41015]
[1756747449825,1.28242704,108630.0,108620.0,0.04935]
[1756747450126,0.8974,108630.0,108620.0,0.08604]
[1756747450626,0.8974,108630.0,108620.0,0.44684]
[1756747450926,0.8974,108630.0,108620.0,0.08604]
[1756747451421,1.2582,108630.0,108620.0,0.04935]
[1756747452319,0.8974,108630.0,108620.0,0.04935]
[1756747452519,0.007,108630.0,108620.0,0.44684]
[1756747452814,0.89708,108630.0,108620.0,0.44684]
[1756747453019,0.89708,108630.0,108620.0,0.08604]
[1756747453229,0.89708,108630.0,108610.0,0.44684]
[1756747453618,0.38502704,108620.0,108610.0,0.44684]
[1756747453814,0.74582704,108620.0,108600.0,0.46148]
[1756747454021,0.8898,108610.0,108600.0,0.46148]
[1756747454425,0.9818583,108610.0,108600.0,0.46148]
[1756747455330,0.0920668,108600.0,108590.0,0.03669]
[1756747455521,0.0920668,108600.0,108590.0,0.04935]
[1756747455832,0.47709384,108600.0,108590.0,0.0249]
[1756747456329,0.0920668,108600.0,108590.0,0.0249]
[1756747456531,0.0920668,108600.0,108590.0,0.04935]
[1756747456830,0.0940668,108600.0,108590.0,0.04935]
[1756747457525,0.0960668,108600.0,108590.0,0.04935]
[1756747457719,0.0960668,108600.0,108590.0,0.08604]
[1756747457927,0.0960668,108600.0,108590.0,0.0249]
[1756747458129,0.0960668,108600.0,108590.0,0.08604]
[1756747458629,0.0960668,108600.0,108590.0,0.04935]
[1756747459031,0.0960668,108600.0,108590.0,0.08604]
[1756747459725,0.9854268,108600.0,108590.0,0.08604]
[1756747460324,0.0960668,108600.0,108590.0,0.08604]
[1756747460527,0.9852668,108600.0,108590.0,0.08604]
[1756747461035,0.0960668,108600.0,108590.0,0.08604]
[1756747461230,0.0960668,108600.0,108590.0,1.17394224]
[1756747462032,0.0960668,108600.0,108590.0,2.06294224]
[1756747462428,0.0960668,108600.0,108590.0,1.17394224]
[1756747462936,0.0940668,108600.0,108590.0,1.17394224]
[1756747463533,0.0930668,108600.0,108590.0,1.17394224]
[1756747464338,0.0930668,108600.0,108590.0,0.7889152]
[1756747464635,0.0930668,108600.0,108590.0,2.06286224]
[1756747465531,0.0930668,108600.0,108590.0,1.88446704]
[1756747465737,0.0930668,108600.0,108590.0,2.15016704]
[1756747466139,0.0930668,108600.0,108590.0,2.60224224]
[1756747466329,0.0930668,108600.0,108590.0,2.49224224]
[1756747466729,0.0930668,108600.0,108590.0,2.26224224]
[1756747467227,0.0930668,108600.0,108590.0,2.57224224]
[1756747467430,0.0930668,108600.0,108590.0,2.60893224]
[1756747467733,0.0930668,108600.0,108590.0,2.29893224]
[1756747468739,0.001,108600.0,108590.0,2.68508407]
[1756747469329,0.001,108600.0,108590.0,2.61893224]
[1756747469636,0.001,108600.0,108590.0,2.68495282]
[1756747470639,0.1770452,108630.0,108620.0,0.08604]
[1756747471438,0.1770452,108630.0,108620.0,0.83186704]
[1756747471639,0.4310452,108630.0,108620.0,0.83186704]
[1756747471827,0.4340452,108630.0,108620.0,0.83186704]
[1756747472135,0.4340452,108630.0,108620.0,1.55391654]
[1756747472136,0.007,108630.0,108620.0,1.55391654]
[1756747472334,0.007,108630.0,108620.0,1.61993712]
[1756747472542,0.007,108630.0,108620.0,1.55391654]
[1756747472937,0.007,108630.0,108620.0,1.63615765]
[1756747473141,0.007,108630.0,108620.0,1.64557727]
[1756747473446,0.141773,108660.0,108650.0,0.1780641]
[1756747473650,0.1417628,108670.0,108660.0,0.08604]
[1756747473833,0.1417628,108670.0,108660.0,0.92388264]
[1756747474033,0.0920128,108670.0,108660.0,0.83186704]
[1756747474342,0.1168928,108670.0,108660.0,0.92388264]
[1756747474842,0.1168928,108670.0,108660.0,0.92488264]
[1756747475234,0.174564,108690.0,108680.0,0.08625]
[1756747475539,0.284564,108690.0,108680.0,0.44705]
[1756747476544,0.284564,108690.0,108680.0,0.40973]